Cogmind - Beta 16 @@@ ROGUE MODE // 2025.11.22 @ 20:03:59 Player: obl-vn Result: Smashed by cave-in Performance ------------- Evolutions (1) 500 Regions Visited (6) 1200 Robots Destroyed (43) 215 Value Destroyed (788) 788 Prototype IDs (25) 500 Alien Tech Used (0) 0 Bonus (300) 300 TOTAL SCORE: 3503 Bonus ------- Aligned with FarCom 300 Cogmind --------- Core Integrity 0/400 Matter 293/300 Energy 250/250 System Corruption 7% Temperature Cool (3) Movement Treading (160) Location -8/Mines Parts ------- > --- POWER (1) -------- Ion Engine > --- PROPULSION (3) --- Improved Treads Improved Treads > --- UTILITY (3) ------ Hardened Light Armor Plating > --- WEAPON (2) ------- Firepult > --- INVENTORY (5) ---- AWS/Gauss Peak State ------------ > --- POWER ------------ Ion Engine > --- PROPULSION ------- Light Treads Light Treads Improved Treads > --- UTILITY ---------- Large Storage Unit High-capacity Matter Pod Hardened Light Armor Plating > --- WEAPON ----------- YOLO Cannon > --- INVENTORY -------- Ion Engine Improved Treads Improved Treads High-capacity Battery High-capacity Matter Pod Seismic Detector Firepult Heavy Assault Rifle Heavy Assault Rifle AWS/Gauss Rocket Launcher [Rating: 34] Favorites ----------- Power Ion Engine Engine Ion Engine Propulsion Light Treads Treads Light Treads Utility Medium Storage Unit Device Seismic Detector Storage Medium Storage Unit Protection Hardened Light Armor Plating Weapon Heavy Assault Rifle Energy Gun Small Laser Energy Cannon YOLO Cannon Ballistic Gun Heavy Assault Rifle Launcher Mini Grenade Launcher Build | -11 -10 -10 -9 -9 -9 -8 ------- Run | Yrd Mat Min Mat Min Exi Min Slots Evolved 2 | . . . 2 . . . Power . | . . . . . . . Propulsion 1 | . . . 1 . . . Utility 1 | . . . 1 . . . Weapon . | . . . . . . . Parts Attached 38 | 6 6 5 12 3 1 5 Power 4 | 1 1 1 . . . 1 Engine 4 | 1 1 1 . . . 1 Core . | . . . . . . . Reactor . | . . . . . . . Propulsion 8 | 2 . 1 4 . . 1 Treads 8 | 2 . 1 4 . . 1 Leg . | . . . . . . . Wheel . | . . . . . . . Hover . | . . . . . . . Flight . | . . . . . . . Utility 12 | 1 3 2 3 2 . 1 Device 5 | . 2 2 . 1 . . Storage 5 | 1 1 . 1 1 . 1 Processor . | . . . . . . . Hackware . | . . . . . . . Protection 2 | . . . 2 . . . Artifact . | . . . . . . . Weapon 14 | 2 2 1 5 1 1 2 Energy Gun 3 | . 1 . 2 . . . Energy Cannon 3 | . . . 1 . . 2 Ballistic Gun 6 | 2 1 . 2 . 1 . Ballistic Cannon . | . . . . . . . Launcher 2 | . . 1 . 1 . . Special Weapon . | . . . . . . . Impact Weapon . | . . . . . . . Slashing Weapon . | . . . . . . . Piercing Weapon . | . . . . . . . Special Melee Weapon . | . . . . . . . Unidentified Prototypes 2 | . . 1 1 . . . Parts Lost 14 | . 3 . 1 3 . 7 Power 3 | . 1 . 1 . . 1 Propulsion 3 | . . . . 1 . 2 Utility 5 | . . . . 2 . 3 Weapon 3 | . 2 . . . . 1 Highest Loss Streak 5 | . 1 . 1 2 . 5 To Critical Strikes . | . . . . . . . Average Backups 8 | 1 6 5 10 14 12 9 Power . | . 1 . . 1 1 . Propulsion 1 | . 1 1 . 2 2 1 Utility 3 | . 3 4 4 3 3 2 Weapon 2 | . . . 4 6 6 5 Tool/Special . | . . . . . . . Unused Backups 9 | . 1 . 2 . 2 4 Power 2 | . 1 . 1 . . . Propulsion . | . . . . . . . Utility 1 | . . . . . . 1 Weapon 5 | . . . 1 . 1 3 Tool/Special 1 | . . . . . 1 . Average Slot Usage (%) 95 | . 95 88 99 97 100 84 Engine 12 | . 13 13 11 11 11 9 Treads 30 | . 27 27 33 33 33 32 Device 9 | . 13 14 12 5 . 1 Storage 14 | . 14 14 11 12 22 18 Protection 5 | . . . 9 12 11 11 Energy Gun 3 | . . 14 2 . . . Ballistic Gun 14 | . 24 . 18 16 11 . Launcher 3 | . . 3 1 5 11 1 Peak Build Rating 34 | 6 7 16 20 19 20 34 Average Rating 13 | 4 6 12 16 16 17 30 On Entrance 11 | . 6 4 16 17 16 20 Avg Prop Armor Cover (%) . | . . . . . . . Naked Turns . | . . . . . . . Heaviest Build 52 | 14 20 21 39 39 38 52 Greatest Support 69 | 40 40 40 69 69 66 66 Greatest Overweight (x) . | . . . . . . . Average Overweight (x) . | . . . . . . . Largest Inventory Capacity 15 | 8 10 10 15 15 15 15 Average Capacity 11 | 7 9 10 12 15 15 11 Most Carried 15 | 4 9 7 15 15 15 15 Average Carried 9 | 1 6 5 10 14 13 11 Final Capacity 15 | 8 10 10 15 15 15 5 Final Carried 15 | 2 7 6 15 13 15 2 Class Distribution -------------------- 98% | Mutant Dominant Class ---------------- Mutant | -10/Materials Mutant | -10/Mines Mutant | -9/Materials Mutant | -9/Mines Mutant | -9/Exiles Mutant | -8/Mines Resources | -11 -10 -10 -9 -9 -9 -8 ----------- Run | Yrd Mat Min Mat Min Exi Min Matter Collected 1737 | 290 272 65 299 744 . 67 Remotely . | . . . . . . . Salvage Created 1401 | 77 489 . 360 258 . 217 Parts 87 | 9 30 . 24 14 . 10 Haulers Intercepted 1 | . 1 . . . . . Recyclers Shooed 3 | 1 . . . . . 2 Parts Field Recycled . | . . . . . . . Retrieved Matter . | . . . . . . . Parts Self-Destructed . | . . . . . . . Prevented . | . . . . . . . Parts Restored . | . . . . . . . Kills | -11 -10 -10 -9 -9 -9 -8 ------- Run | Yrd Mat Min Mat Min Exi Min Combat Hostiles Destroyed 37 | . 15 . 6 16 . . Guns 24 | . 15 . 6 3 . . AOE 13 | . . . . 13 . . Classes Destroyed 10 | 2 3 . 2 3 . . Worker 5 | . . . . 3 . 2 Builder 2 | . . . 1 . . 1 Tunneler 2 | 1 . . . . . 1 Hauler 1 | . 1 . . . . . Recycler 5 | 1 . . 1 2 . 1 Swarmer 9 | . 6 . . 3 . . Grunt 16 | . 9 . 5 1 . 1 Sentry 1 | . . . 1 . . . Demolisher 2 | . . . . 2 . . Assembled 11 | . . . . 11 . . Best Kill Streak 6 | 2 3 . 3 6 . 3 Combat Bots Only 5 | . 3 . 3 5 . . Max Kills in Single Turn 2 | 1 1 . 1 2 . 1 Gunslinging . | . . . . . . . Exploded 2 | . . . . 2 . . Melee . | . . . . . . . Uniques/NPCs Destroyed . | . . . . . . . Combat | -11 -10 -10 -9 -9 -9 -8 -------- Run | Yrd Mat Min Mat Min Exi Min Hostile Shots Fired 153 | . 110 . 12 31 . . Missed 42 | . 35 . 3 4 . . Hits 111 | . 75 . 9 27 . . Projectile 111 | . 75 . 9 27 . . AOE 15 | . . . . 15 . . Damage Taken 2378 | . 767 . 105 846 . 660 Core 452 | . 118 . 10 144 . 180 Absorbed by Shields . | . . . . . . . Ignored by Resistances 9 | . . . . 9 . . Regen/Repaired (Parts) 19 | . 19 . . . . . Core Remaining (%) 76 | 100 . 52 . . . . Volleys Fired 142 | 5 64 1 16 29 . 27 Largest 2 | 2 2 1 2 2 . 1 Hottest 100 | 40 60 40 46 53 . 100 Shots Fired 222 | 10 110 1 32 43 . 26 Gun 178 | 10 110 1 32 22 . 3 Cannon 23 | . . . . . . 23 Launcher 21 | . . . . 21 . . Special . | . . . . . . . Kinetic 169 | 10 102 . 32 22 . 3 Thermal 32 | . 8 1 . . . 23 Explosive 21 | . . . . 21 . . Electromagnetic . | . . . . . . . Robot Hit Streak 13 | 2 13 7 12 11 . 1 Robot Miss Streak 5 | 2 5 . 1 1 . 1 Penetration Max . | . . . . . . . Secondary Targets 2 | . 2 . . . . . Max Gunslinging Chain 1 | . 1 . . . . . Shots Hit Robots 127 | 6 71 1 23 25 . 1 Core Hits 85 | 3 27 . 13 38 . 4 Critical Kills . | . . . . . . . Critical Parts Destroyed . | . . . . . . . Critical Strikes . | . . . . . . . Melee Attacks . | . . . . . . . Impact . | . . . . . . . Slashing . | . . . . . . . Piercing . | . . . . . . . Sneak Attacks . | . . . . . . . Combat Hostiles . | . . . . . . . Follow-up Attacks . | . . . . . . . Damage Inflicted 3031 | 79 765 12 364 1410 . 401 Guns 1518 | 79 765 12 364 281 . 17 Cannons . | . . . . . . . Explosions 1513 | . . . . 1129 . 384 Melee . | . . . . . . . Ramming . | . . . . . . . Kinetic 1436 | 79 695 . 364 281 . 17 Thermal 466 | . 70 12 . . . 384 Explosive 1129 | . . . . 1129 . . Electromagnetic . | . . . . . . . Impact . | . . . . . . . Slashing . | . . . . . . . Piercing . | . . . . . . . Highest Corruption 5 | . . . . . . 5 Average Corruption 5 | . . . . . . 5 Corruption Purged . | . . . . . . . Corruption Blocked . | . . . . . . . Effects 2 | . . . . . . 2 Matter Fused 1 | . . . . . . 1 Heat Flow Errors 1 | . . . . . . 1 Overload Shots . | . . . . . . . Overflow Damage 98 | . . . . 60 . 38 Projectiles . | . . . . . . . Explosions 98 | . . . . 60 . 38 Melee . | . . . . . . . Knockbacks . | . . . . . . . Impact . | . . . . . . . Kinetic . | . . . . . . . Secondary . | . . . . . . . Self-Inflicted Damage 129 | . . . . 60 . 69 Shots 5 | . . . . 4 . 1 Rammed . | . . . . . . . Targets Rammed . | . . . . . . . Kicked . | . . . . . . . Crushed . | . . . . . . . Highest Temperature 214 | . 124 . 24 17 . 214 Average Temperature 70 | . 50 . 15 15 . 82 Received Heat Transfer 314 | . 246 . 48 20 . . Siege Activations . | . . . . . . . Martial Activations . | . . . . . . . Shielding Activations . | . . . . . . . Robots Disrupted . | . . . . . . . Combat Hostiles . | . . . . . . . Robots Corrupted . | . . . . . . . Combat Hostiles . | . . . . . . . Parts Fried . | . . . . . . . Impact Corruptions . | . . . . . . . Robots Melted . | . . . . . . . Combat Hostiles . | . . . . . . . Parts Melted 2 | . 2 . . . . . Heat Transferred 415 | . 150 25 . . . 240 Parts Sabotaged . | . . . . . . . Parts Stolen . | . . . . . . . Parts Stripped . | . . . . . . . Power Chain Reactions . | . . . . . . . Alert | -11 -10 -10 -9 -9 -9 -8 ------- Run | Yrd Mat Min Mat Min Exi Min Maximum Alert Level . | . . . . . . . Low Security (%) 100 | 100 100 100 100 100 . 100 Level 1 . | . . . . . . . Level 2 . | . . . . . . . Level 3 . | . . . . . . . Level 4 . | . . . . . . . Level 5 . | . . . . . . . High Security . | . . . . . . . Max Security . | . . . . . . . Peak Influence 100 | 5 100 23 85 75 . 54 Initial 23 | . 3 23 . 6 . . Average 16 | 1 24 . 22 16 . 21 Influence Increases 938 | 10 358 . 184 263 . 123 Destroy 0b10 Robot/C 520 | . 300 . 120 100 . . Destroy 0b10 Robot/NC 75 | 10 5 . 10 25 . 25 Destroy Leader 102 | . 52 . 30 20 . . Successful Hack 8 | . . . 8 . . . Disable Machine 15 | . . . . . . 15 Destroy Structure 203 | . 1 . 1 118 . 83 Lose Combat Pursuer 15 | . . . 15 . . . Influence Decreases 938 | 5 303 60 168 270 9 123 Entered New Map 58 | . 2 37 . 10 9 . Time Decay 786 | 5 271 23 168 230 . 89 Lost Part 94 | . 30 . . 30 . 34 Squads Dispatched 6 | . 4 . 2 . . . Investigation 4 | . 3 . 1 . . . Extermination . | . . . . . . . Reinforcement 2 | . 1 . 1 . . . Assault . | . . . . . . . Garrison . | . . . . . . . Intercept . | . . . . . . . Searches Triggered . | . . . . . . . Construction Impeded . | . . . . . . . Haulers Reinforced . | . . . . . . . Active Scanning Responses . | . . . . . . . Cargo Convoy Interrupts . | . . . . . . . Stealth | -11 -10 -10 -9 -9 -9 -8 --------- Run | Yrd Mat Min Mat Min Exi Min Distress Signals 2 | . . . 2 . . . Communications Jammed . | . . . . . . . Distress Signals . | . . . . . . . Times Spotted 55 | . 25 . 12 18 . . Peak Tracking Total 5 | . 4 . 5 4 . . Tactical Retreats 1 | . . . 1 . . . Traps | -11 -10 -10 -9 -9 -9 -8 ------- Run | Yrd Mat Min Mat Min Exi Min Traps Triggered 5 | . 5 . . . . . Indirectly . | . . . . . . . Trap Hack Attempts . | . . . . . . . Triggered . | . . . . . . . Disarmed . | . . . . . . . Reprogrammed . | . . . . . . . Reused . | . . . . . . . Traps Extracted . | . . . . . . . Installed 2 | . . . . 2 . . Triggered . | . . . . . . . Machines | -11 -10 -10 -9 -9 -9 -8 ---------- Run | Yrd Mat Min Mat Min Exi Min Machines Disabled 1 | . . . . . . 1 Max in Single Turn 1 | . . . . . . 1 Machines Repaired . | . . . . . . . Machines Dismantled . | . . . . . . . Machines Sabotaged . | . . . . . . . Overloaded Fab Kills . | . . . . . . . Hacking | -11 -10 -10 -9 -9 -9 -8 --------- Run | Yrd Mat Min Mat Min Exi Min Machines Accessed 8 | . 6 . 1 . 1 . Terminals 6 | . 5 . 1 . . . Fabricators . | . . . . . . . Repair Stations 1 | . 1 . . . . . Recycling Units . | . . . . . . . Scanalyzers . | . . . . . . . Garrison Access . | . . . . . . . Total Hacks 21 | . 14 . 6 . 1 . Successful 3 | . 1 . 1 . 1 . Failed 18 | . 13 . 5 . . . Catastrophic 3 | . 3 . . . . . Database Lockouts . | . . . . . . . Manual 23 | . 16 . 6 . 1 . Terminals 19 | . 13 . 6 . . . Fabricators . | . . . . . . . Repair Stations 1 | . 1 . . . . . Recycling Units . | . . . . . . . Scanalyzers . | . . . . . . . Garrison Access . | . . . . . . . Terminal Hacks 2 | . . . 1 . 1 . Branch Access Points 1 | . . . 1 . . . Proto ID Catalog 1 | . . . . . 1 . Fabricator Hacks . | . . . . . . . Repair Station Hacks . | . . . . . . . Recycling Unit Hacks . | . . . . . . . Scanalyzer . | . . . . . . . Garrison Access Hacks . | . . . . . . . Unauthorized Hacks 1 | . 1 . . . . . Terminals . | . . . . . . . Fabricators . | . . . . . . . Repair Stations 1 | . 1 . . . . . Patch 1 | . 1 . . . . . Recycling Units . | . . . . . . . Scanalyzers . | . . . . . . . Garrison Access . | . . . . . . . Data Cores Recovered . | . . . . . . . Used . | . . . . . . . Hacking Detections 6 | . 5 . 1 . . . Full Trace Events 6 | . 5 . 1 . . . Feedback Events . | . . . . . . . Feedback Blocked . | . . . . . . . Robot Schematics Acquired . | . . . . . . . Robots Built . | . . . . . . . Authchips . | . . . . . . . Time . | . . . . . . . Total Robot Build Rating . | . . . . . . . Part Schematics Acquired . | . . . . . . . Parts Built . | . . . . . . . Authchips . | . . . . . . . Time . | . . . . . . . Total Part Build Rating . | . . . . . . . Part Studies Acquired . | . . . . . . . Parts Repaired . | . . . . . . . Time . | . . . . . . . Parts Recycled . | . . . . . . . Recycled Matter . | . . . . . . . Retrieved Matter . | . . . . . . . Retrieved Components . | . . . . . . . Parts Scanalyzed . | . . . . . . . Part Schematics Acquired . | . . . . . . . Parts Damaged . | . . . . . . . Bothacking | -11 -10 -10 -9 -9 -9 -8 ------------ Run | Yrd Mat Min Mat Min Exi Min Used RIF Installer . | . . . . . . . Robots Hacked . | . . . . . . . Non-combat . | . . . . . . . Combat . | . . . . . . . Robot Hacks Applied . | . . . . . . . Relay Couplers Released . | . . . . . . . Fabnet Peak Effective % . | . . . . . . . Robots Rewired . | . . . . . . . Allies Hacked . | . . . . . . . Hacks Repelled . | . . . . . . . Allies | -11 -10 -10 -9 -9 -9 -8 -------- Run | Yrd Mat Min Mat Min Exi Min Total Allies 4 | . . 1 . 3 . . Largest Group 3 | . . 1 . 3 1 1 Highest-Rated Group 40 | . . 31 . 40 16 16 Highest-Rated Ally 31 | . . 31 . 16 16 16 Total Orders . | . . . . . . . Ally Attacks 22 | . . . . 22 . . Total Damage 158 | . . . . 158 . . Kills 4 | . . . . 4 . . Allies Corrupted . | . . . . . . . Allies Melted . | . . . . . . . Intel | -11 -10 -10 -9 -9 -9 -8 ------- Run | Yrd Mat Min Mat Min Exi Min Active Infowar (turns) 2419 | . 950 762 432 253 . 22 Sensors 776 | . . 557 219 . . . Seismic 1861 | . 950 205 431 253 . 22 Robot Analysis Total . | . . . . . . . Derelict Logs Recovered 1 | . . 1 . . . . Drone Launches . | . . . . . . . Drone Recoveries . | . . . . . . . Exploration | -11 -10 -10 -9 -9 -9 -8 ------------- Run | Yrd Mat Min Mat Min Exi Min Turns Passed 4176 | 97 1310 763 565 855 351 235 Spaces Moved 2113 | 46 614 467 264 468 215 39 Core 4 | 4 . . . . . . Treads 2109 | 42 614 467 264 468 215 39 Legs . | . . . . . . . Wheels . | . . . . . . . Hover . | . . . . . . . Flight . | . . . . . . . Fastest Speed 50 | 50 160 160 160 160 160 160 Average Speed 159 | 150 160 160 160 160 160 160 Slowest Speed 160 | 160 160 160 160 160 160 160 Overloaded Moves . | . . . . . . . Propulsion Burnouts . | . . . . . . . Robots Hopped . | . . . . . . . Potential Cave-ins 3 | . . . . . . 3 Cave-ins Triggered 2 | . . . . . . 2 Exploration Rate (%) 53 | 5 82 99 31 80 59 15 Regions Visited 6 Branch Regions 4 Pre-discovered Areas 1 | . . 1 . . . . Known Exits Taken 1 | . . . 1 . . . Unknown Exits Taken 5 | 1 1 1 . 1 1 . Scrap Searched 2 | . . 1 . 1 . . Spaces Dug 27 | . . . . . . 27 Terrain Destroyed 352 | . . . . 153 . 199 Melee . | . . . . . . . Projectile 10 | . . . . . . 10 AOE 342 | . . . . 153 . 189 Terrain Rammed . | . . . . . . . Walls Destroyed . | . . . . . . . Machines Disabled . | . . . . . . . Actions | -11 -10 -10 -9 -9 -9 -8 --------- Run | Yrd Mat Min Mat Min Exi Min Total 2646 | 64 836 481 376 529 223 137 Wait 266 | . 135 5 47 22 . 57 Move 2106 | 45 613 466 263 467 214 38 Hop . | . . . . . . . Pick Up 48 | 8 11 2 20 1 3 3 Fast Attach 6 | . . . 3 . . 3 Attach 26 | 6 5 4 4 3 . 4 Detach 2 | . . 1 1 . . . Swap 26 | . 6 2 10 5 2 1 Drop 22 | . 2 . 12 . 4 4 Fire 142 | 5 64 1 16 29 . 27 Melee . | . . . . . . . Ram . | . . . . . . . Kick . | . . . . . . . Crush . | . . . . . . . Escape Stasis . | . . . . . . . Rewire . | . . . . . . . Trap 2 | . . . . 2 . . Miscellaneous . | . . . . . . . Route ------- -11/Scrapyard -10/Materials (discovered 4 exits: *Mat x2 / [*Min] / [*Sub]) -10/Mines (discovered 3 exits: *Mat x2 / [*Sub]) -9/Materials (discovered 3 exits: *Min / Sto x2) -9/Mines (discovered 3 exits: [*Mat x2] / *Exi) -9/Exiles -8/Mines History --------- Turn | Location | Event 4 | -11/Scrapyard | Discovered new exit (range 16) 98 | -11/Scrapyard | Entered Materials 304 | -10/Materials | Build established: Mutant 490 | -10/Materials | Discovered new exit (range 15) 885 | -10/Materials | Discovered new exit (range 4) 1209 | -10/Materials | Discovered new exit (range 8) 1359 | -10/Materials | Discovered new exit (range 12) 1408 | -10/Materials | Entered Mines 1411 | -10/Mines | Received a Mining Laser from a helpful Derelict 1445 | -10/Mines | Discovered new exit (range 13) 1606 | -10/Mines | Found a damaged Exp. Sensor Array with a note attached 1612 | -10/Mines | Found Prototype Device 1614 | -10/Mines | Identified Exp. Sensor Array 1633 | -10/Mines | Discovered new exit (range 8) 1823 | -10/Mines | Discovered new exit (range 13) 1946 | -10/Mines | Learned location of Zion (-6) 1948 | -10/Mines | Received a Rocket Launcher from a helpful Derelict 2171 | -10/Mines | Entered Materials 2171 | -9/Materials | Evolved 2 slots: Propulsion x1, Utility x1 2295 | -9/Materials | Identified exit to Mines 2295 | -9/Materials | Identified exit to Storage 2736 | -9/Materials | Entered Mines 2822 | -9/Mines | Assembled infested the area 2852 | -9/Mines | Found a hidden stash of uninstalled traps 2927 | -9/Mines | Discovered new exit (range 15) 2959 | -9/Mines | Assisted by bots powering up and referring to "LRC-V3" 3368 | -9/Mines | Discovered new exit (range 6) 3583 | -9/Mines | Deemed a non-threat by the Exiles lab entrance 3585 | -9/Mines | Discovered new exit (range 5) 3591 | -9/Mines | Entered Exiles 3591 | -9/Exiles | Accompanied by 1 ally 3630 | -9/Exiles | Met 8R-AWN 3657 | -9/Exiles | Met EX-HEX 3703 | -9/Exiles | Met EX-BIN 3726 | -9/Exiles | Aligned with FarCom system 3727 | -9/Exiles | Given EX-Vault access code 3766 | -9/Exiles | Opened EX-Vault 3777 | -9/Exiles | Found YOLO Cannon 3782 | -9/Exiles | Found AWS/Gauss 3791 | -9/Exiles | Found Firepult 3823 | -9/Exiles | Warned to stay clear of 0b10 Research branches 3870 | -9/Exiles | Met EX-DEC 3924 | -9/Exiles | Discovered new exit (range 12) 3942 | -9/Exiles | Stole three prototypes: Firepult, YOLO Cannon, AWS/Gauss 3942 | -9/Exiles | Entered Mines 3942 | -8/Mines | Accompanied by 1 ally 4105 | -8/Mines | YOLO Cannon suddenly exploded 4106 | -8/Mines | Core integrity fell below 50% 4131 | -8/Mines | Crushed by falling debris 4131 | -8/Mines | Core integrity fell below 20% 4162 | -8/Mines | Lost 5 parts (1p1n2u1w) 4177 | -8/Mines | Crushed by falling debris 4177 | -8/Mines | Smashed by cave-in Last Messages --------------- 04131_ The unstable cave ceiling collapses. 04131_ Crushed by falling debris. 04131_ Seismic Detector destroyed. 04131_ System corrupted by crushing effect (+5). 04133_ Dropped Hvy. Assault Rifle. 04133_ Dropped Rocket Launcher. 04138_ U-05 Engineer lays Concrete. 04139_ U-05 Engineer builds a Wall. 04153_ System corrupted: Heat flow error (+178). 04156_ Extracted 27 matter. 04157_ U-05 Engineer forms the Earth. 04170_ U-05 Engineer builds a Wall. 04171_ System corrupted: Matter fused (-10). 04176_ U-05 Engineer builds a Wall. 04177_ The unstable cave ceiling collapses. 04177_ Crushed by falling debris. 04177_ Lgt. Treads destroyed. 04177_ System corrupted by crushing effect (+1). 04177_ Hcp. Battery destroyed. 04177_ System corrupted by crushing effect (+1). Map ----- +----------------------------------------------------+ | | | | | | | | | | | | | | | | | | | | | | | ?????????????????????????????????????????????????? | | ?????????????????????????????????????????????????? | | ?????????????????????????????????????????????????? | | ?????????????????????????????????????????????????? | | ?????????????????????????????????????????######??? | | ????????????????????????????????????????? #??? | | ????????????????????????????????????##### """#??? | | ????????????????????????????????????# ? """#??? | | ????????????????????????########????# #? """#??? | | ????????????????????????# ##???# ## """#??? | | ??????????????????????### ## # ##??# "" #??? | | ??????????????????????# # #""#### ! """"###??? | | ??????????????????????# # % [ " ##????? | | ?????????????????????## # # ! %%% ]![" ##????? | | ???????????????????###;;;@;####"" %% [#" #????? | | ??????????????????# ; " % ] ####????? | | ????????????????# ; ;* % " #???????? | | ???????????????# |%= " #???????? | | ????????????? ## ;; ;##???????? | | ???????????? ### # ###????????? | | ???????????? % # ### #??????????? | | ???????????? ### ## #??????????? | | ????????????? #??## # #??????????? | | ????????????? ?????## ## #??????????? | | ?????????????? ???????## ## ?????????? | | ???????????????????????# ### "####????????? | | ??????????????????????# # #???????????? | | ?????????????????????? ## ##???????????? | | ?????????????????????? ### #????????????? | | ?????????????????????? #?? #????????????? | | ??????????????????????????##### ##????????????? | | ??????????????????????????????#####??????????????? | | ?????????????????????????????????????????????????? | | ?????????????????????????????????????????????????? | | ?????????????????????????????????????????????????? | | ?????????????????????????????????????????????????? | | ?????????????????????????????????????????????????? | | ?????????????????????????????????????????????????? | | ?????????????????????????????????????????????????? | +----------------------------------------------------+ Best States ------------- Heat Dissipation 35 Energy Generation 10 Energy Capacity 500 Matter Stores 488 Matter Capacity 500 Sight Range 16 Robot Scan Range 20 Terrain Scan Density 10 Armor Coverage 300 Resistance: EX 25 Evasion (%) 40 Recoil Reduction 3 Item Schematics ----------------- None Robot Schematics ------------------ None Fabricated ------------ Nothing Repaired ---------- Nothing Studied --------- None Alien Tech Used ----------------- None Achievements -------------- YOLO Challenges ------------ None Game ------ Seed SpliceNetworkChainsword Manual? 0 Play Time 00:28:23 Cumulative 56.1 hours Start 2025.11.22 @ 19:32:08 End 2025.11.22 @ 20:03:59 Sessions 1 Manual Loads 0 Difficulty Rogue Special Mode None Game No. 45 Rogue 45 Adventurer 0 Explorer 0 Win Type - Total 1 Types 0/0/0/1/0/0/0/0/0/0 Lore% 20 Gallery% 33 Achievement% 24 Wizard Run 0 Options --------- Layout 1 ASCII 0 Keyboard 0 Movement Mouse Keybinds 0 Fullscreen 1 Font 32/SmallcapsGlow Map View 50x35 Zoom Use 0% Tactical HUD 1 Map Filters NONE Filters NONE Steam 1 RUN: 30f64fb0-caef-4262-8a58-ae7183438665